lending/lending_fUSD_20240509
["ID","MTS","AMOUNT","RATE_DAILY","PERIOD"]
[326719747,1715283055081,-272.8235071,0.00041095,30]
[326719748,1715283055092,-500.0,0.00041095,30]
[326719749,1715283055101,-567.29,0.00041095,30]
[326719750,1715283055110,-704.84,0.00041095,30]
[326719751,1715283055122,-500.0,0.00041095,30]
[326719752,1715283055132,-500.0,0.00041095,30]
[326719753,1715283055142,-500.0,0.00041095,30]
[326719754,1715283055312,-500.0,0.00041095,30]
[326719755,1715283055321,-503.55804525,0.00041095,30]
[326719756,1715283055331,-500.0,0.00041095,30]
[326719757,1715283055343,-1537.14,0.00041095,30]
[326719758,1715283055353,-500.0,0.00041095,30]
[326719759,1715283055365,-152.83932151,0.00041095,30]
[326719760,1715283055374,-500.0,0.00041095,30]
[326719761,1715283055383,-1188.71,0.00041095,30]
[326719762,1715283055392,-397.34464003,0.00041095,30]
[326719763,1715283055402,-1517.9,0.00041095,30]
[326719764,1715283055411,-500.0,0.00041095,30]
[326719765,1715283055420,-500.0,0.00041095,30]
[326719766,1715283055430,-500.0,0.00041095,31]
[326719767,1715283055440,-500.0,0.00041095,30]
[326719768,1715283055450,-500.0,0.00041095,32]
[326719769,1715283055459,-500.0,0.00041095,30]
[326719770,1715283055469,-500.0,0.00041095,33]
[326719771,1715283055478,-500.0,0.00041095,34]
[326719772,1715283055487,-500.0,0.00041095,30]
[326719773,1715283055497,-500.0,0.00041095,30]
[326719774,1715283055507,-500.0,0.00041095,30]
[326719775,1715283055516,-500.0,0.00041095,30]
[326719776,1715283055528,-500.0,0.00041095,30]
[326719777,1715283055538,-1757.88,0.00041095,30]
[326719778,1715283055548,-500.0,0.00041095,30]
[326719779,1715283055560,-500.0,0.00041095,30]
[326719780,1715283055571,-500.0,0.00041095,30]
[326719781,1715283055580,-500.0,0.00041095,30]
[326719782,1715283055589,-500.0,0.00041095,30]
[326719783,1715283055599,-2486.86,0.00041095,30]
[326719784,1715283055610,-1357.13,0.00041095,30]
[326719785,1715283055623,-500.0,0.00041095,30]
[326719786,1715283055633,-500.0,0.00041095,30]
[326719787,1715283055643,-1277.56,0.00041095,30]
[326719788,1715283055652,-500.0,0.00041095,30]
[326719789,1715283055662,-500.0,0.00041095,30]
[326719790,1715283055671,-500.0,0.00041095,30]
[326719791,1715283055680,-322.39453208,0.00041095,30]
[326719792,1715283055690,-500.0,0.00041095,30]
[326719793,1715283055699,-770.53,0.00041095,30]
[326719794,1715283055709,-500.0,0.00041095,30]
[326719795,1715283055718,-500.0,0.00041095,30]
[326719796,1715283055728,-433.04035295,0.00041095,30]
[326719797,1715283055737,-500.0,0.00041095,30]
[326719798,1715283055747,-500.0,0.00041095,30]
[326719799,1715283055757,-500.0,0.00041095,30]
[326719800,1715283055767,-500.0,0.00041095,30]
[326719801,1715283055776,-500.7490207,0.00041095,30]
[326719802,1715283055786,-500.0,0.00041095,30]
[326719803,1715283055796,-500.0,0.00041095,30]
[326719804,1715283055805,-500.0,0.00041095,30]
[326719805,1715283055815,-500.0,0.00041095,30]
[326719806,1715283055824,-500.0,0.00041095,30]
[326719807,1715283055834,-500.0,0.00041095,30]
[326719808,1715283055843,-500.0,0.00041095,30]
[326719809,1715283055853,-500.0,0.00041095,30]
[326719810,1715283055864,-500.0,0.00041095,2]
[326719811,1715283055873,-516.93693052,0.00041095,30]
[326719812,1715283055883,-500.0,0.00041095,30]
[326719813,1715283055893,-1244.3,0.00041095,30]
[326719814,1715283055903,-504.62,0.00041095,30]
[326719815,1715283055912,-500.0,0.00041095,30]
[326719816,1715283055921,-500.0,0.00041095,30]
[326719817,1715283055931,-500.0,0.00041095,30]
[326719818,1715283055941,-500.0,0.00041095,30]
[326719819,1715283055951,-523.16127176,0.00041095,30]
[326719820,1715283055961,-814.78,0.00041095,30]
[326719821,1715283055971,-558.62,0.00041095,30]
[326719822,1715283055980,-500.0,0.00041095,30]
[326719823,1715283055989,-500.0,0.00041095,30]
[326719824,1715283056000,-500.0,0.00041095,30]
[326719825,1715283056010,-500.0,0.00041095,30]
[326719826,1715283056022,-852.44,0.00041095,30]
[326719827,1715283056032,-500.0,0.00041095,30]
[326719828,1715283056044,-500.0,0.00041095,30]
[326719829,1715283056053,-500.0,0.00041095,30]
[326719830,1715283056063,-500.0,0.00041095,30]
[326719831,1715283056074,-605.02,0.00041095,30]
[326719832,1715283056084,-500.0,0.00041095,30]
[326719833,1715283056093,-500.0,0.00041095,2]
[326719834,1715283056103,-500.0,0.00041095,30]
[326719835,1715283056112,-203.33046894,0.00041095,30]
[326719836,1715283056122,-500.0,0.00041095,30]
[326719837,1715283056132,-500.0,0.00041095,30]
[326719838,1715283056142,-500.0,0.00041095,30]
[326719839,1715283056152,-500.0,0.00041095,30]
[326719840,1715283056162,-2929.64,0.00041095,30]
[326719841,1715283056171,-500.0,0.00041095,30]
[326719842,1715283056181,-500.0,0.00041095,30]
[326719843,1715283056191,-500.0,0.00041095,30]
[326719844,1715283056201,-500.0,0.00041095,30]
[326719845,1715283056211,-500.0,0.00041095,30]
[326719846,1715283056220,-157.84447068,0.00041095,30]
[326719847,1715283056229,-500.0,0.00041095,30]
[326719848,1715283056238,-505.85,0.00041095,30]
[326719849,1715283056247,-626.53065997,0.00041095,30]
[326719850,1715283056257,-500.0,0.00041095,30]
[326719851,1715283056267,-500.0,0.00041095,30]
[326719852,1715283056277,-500.0,0.00041095,30]
[326719853,1715283056286,-500.0,0.00041095,30]
[326719854,1715283056296,-500.0,0.00041095,30]
[326719855,1715283056305,-1990.88,0.00041095,30]
[326719856,1715283056314,-720.43,0.00041095,30]
[326719857,1715283056324,-500.0,0.00041095,30]
[326719858,1715283056333,-500.0,0.00041095,30]
[326719859,1715283056343,-500.0,0.00041095,30]
[326719860,1715283056353,-500.0,0.00041095,30]
[326719861,1715283056362,-500.0,0.00041095,30]
[326719862,1715283056374,-500.0,0.00041095,30]
[326719863,1715283056383,-500.0,0.00041095,30]
[326719864,1715283056392,-696.38,0.00041095,30]
[326719865,1715283056401,-853.45,0.00041095,30]
[326719866,1715283056410,-502.81321546,0.00041095,30]
[326719867,1715283056419,-500.0,0.00041095,30]
[326719868,1715283056428,-500.0,0.00041095,30]
[326719869,1715283056437,-500.0,0.00041095,30]
[326719870,1715283056447,-500.0,0.00041095,30]
[326719871,1715283056456,-500.0,0.00041095,30]
[326719872,1715283056466,-500.0,0.00041095,30]
[326719873,1715283056476,-1062.02,0.00041095,30]
[326719874,1715283056485,-952.29,0.00041095,30]
[326719875,1715283056495,-500.0,0.00041095,30]
[326719876,1715283056505,-1657.62,0.00041095,30]
[326719877,1715283056514,-500.0,0.00041095,30]
[326719878,1715283056524,-500.0,0.00041095,30]
[326719879,1715283056533,-830.99,0.00041095,30]
[326719880,1715283056545,-551.5,0.00041095,30]
[326719881,1715283056555,-523.34,0.00041095,30]
[326719882,1715283056564,-500.0,0.00041095,30]
[326719883,1715283056574,-500.0,0.00041095,30]
[326719884,1715283056584,-2085.68,0.00041095,30]
[326719885,1715283056593,-500.0,0.00041095,30]
[326719886,1715283056603,-500.0,0.00041095,30]
[326719887,1715283056614,-500.0,0.00041095,31]
[326719888,1715283056625,-500.0,0.00041095,32]
[326719889,1715283056635,-503.65562885,0.00041095,30]
[326719890,1715283056645,-500.0,0.00041095,30]
[326719891,1715283056656,-500.0,0.00041095,30]
[326719892,1715283056666,-500.0,0.00041095,30]
[326719893,1715283056675,-500.0,0.00041095,30]
[326719894,1715283056685,-505.91386082,0.00041095,30]
[326719895,1715283056696,-505.8887582,0.00041095,30]
[326719896,1715283056705,-500.0,0.00041095,30]
[326719897,1715283056714,-500.0,0.00041095,30]
[326719898,1715283056724,-500.0,0.00041095,30]
[326719899,1715283056734,-1162.89,0.00041095,30]
[326719900,1715283056743,-500.0,0.00041095,30]
[326719901,1715283056753,-500.0,0.00041095,30]
[326719902,1715283056764,-500.0,0.00041095,30]
[326719903,1715283056774,-500.0,0.00041095,33]
[326719904,1715283056785,-500.0,0.00041095,30]
[326719905,1715283056794,-500.0,0.00041095,34]
[326719906,1715283056804,-500.0,0.00041095,35]
[326719907,1715283056813,-500.0,0.00041095,36]
[326719908,1715283056823,-496.63191649,0.00041095,37]
[326719909,1715283056832,-500.0,0.00041095,30]
[326719910,1715283056842,-500.0,0.00041095,30]
[326719911,1715283056852,-577.1,0.00041095,30]
[326719912,1715283056861,-500.0,0.00041095,30]
[326719913,1715283056872,-500.0,0.00041095,30]
[326719914,1715283056881,-500.0,0.00041095,30]
[326719915,1715283056890,-500.0,0.00041095,30]
[326719916,1715283056899,-1002.66,0.00041095,30]
[326719917,1715283056909,-500.0,0.00041095,30]
[326719918,1715283056918,-500.0,0.00041095,30]
[326719919,1715283056928,-610.97385008,0.00041095,30]
[326719920,1715283056937,-1886.24,0.00041095,30]
[326719921,1715283056945,-500.0,0.00041095,30]
[326719922,1715283056955,-500.96159603,0.00041095,30]
[326719923,1715283056964,-865.62,0.00041095,30]
[326719924,1715283056974,-500.0,0.00041095,30]
[326719925,1715283056983,-614.4399929,0.00041095,2]
[326719926,1715283056992,-500.0,0.00041095,30]
[326719927,1715283057002,-1000.0,0.00041095,2]
[326719928,1715283057011,-500.0,0.00041095,30]
[326719929,1715283057021,-505.64908172,0.00041095,30]
[326719930,1715283057030,-500.0,0.00041095,30]
[326719931,1715283057040,-3258.97,0.00041095,30]
[326719932,1715283057051,-500.0,0.00041095,30]
[326719933,1715283057061,-500.0,0.00041095,30]
[326719934,1715283057070,-500.0,0.00041095,30]
[326719935,1715283057081,-500.0,0.00041095,30]
[326719936,1715283057091,-500.0,0.00041095,30]
[326719937,1715283057100,-500.0,0.00041095,30]
[326719938,1715283057109,-556.85947269,0.00041095,30]
[326719939,1715283057120,-500.0,0.00041095,30]
[326719940,1715283057130,-500.0,0.00041095,30]
[326719941,1715283057140,-1354.89,0.00041095,30]
[326719942,1715283057148,-500.0,0.00041095,30]
[326719943,1715283057159,-500.0,0.00041095,30]
[326719944,1715283057168,-500.0,0.00041095,30]
[326719945,1715283057177,-500.0,0.00041095,30]
[326719946,1715283057187,-825.04,0.00041095,30]
[326719947,1715283057198,-1113.31,0.00041095,30]
[326719948,1715283057208,-500.0,0.00041095,30]
[326719949,1715283057217,-500.0,0.00041095,30]
[326719950,1715283057228,-500.0,0.00041095,30]
[326719951,1715283057237,-1244.57,0.00041095,30]
[326719952,1715283057246,-500.0,0.00041095,30]
[326719953,1715283057255,-771.49,0.00041095,30]
[326719954,1715283057266,-500.0,0.00041095,30]
[326719955,1715283057275,-500.0,0.00041095,30]
[326719956,1715283057287,-500.0,0.00041095,30]
[326719957,1715283057297,-500.0,0.00041095,30]
[326719958,1715283057306,-500.0,0.00041095,30]
[326719959,1715283057315,-500.0,0.00041095,30]
[326719960,1715283057324,-500.0,0.00041095,30]
[326719961,1715283057333,-500.0,0.00041095,30]
[326719962,1715283057343,-500.0,0.00041095,30]
[326719963,1715283057352,-500.0,0.00041095,30]
[326719964,1715283057361,-500.0,0.00041095,30]
[326719965,1715283057372,-2284.79,0.00041095,30]
[326719966,1715283057381,-500.0,0.00041095,30]
[326719967,1715283057390,-886.78,0.00041095,30]
[326719968,1715283057399,-500.0,0.00041095,30]
[326719969,1715283057408,-500.0,0.00041095,30]
[326719970,1715283057418,-803.98,0.00041095,30]
[326719971,1715283057428,-500.0,0.00041095,30]
[326719972,1715283057437,-500.0,0.00041095,30]
[326719973,1715283057446,-500.0,0.00041095,30]
[326719974,1715283057455,-500.0,0.00041095,30]
[326719975,1715283057465,-500.0,0.00041095,30]
[326719976,1715283057475,-467.93959678,0.00041095,30]
[326719977,1715283057485,-500.0,0.00041095,30]
[326719978,1715283057494,-500.0,0.00041095,30]
[326719979,1715283057504,-500.0,0.00041095,30]
[326719980,1715283057513,-500.0,0.00041095,30]
[326719981,1715283057523,-500.0,0.00041095,30]
[326719982,1715283057540,-500.0,0.00041095,30]
[326719983,1715283057549,-533.32768351,0.00041095,30]
[326719984,1715283057560,-500.0,0.00041095,30]
[326719985,1715283057572,-500.0,0.00041095,30]
[326719986,1715283057581,-664.46,0.00041095,30]
[326719987,1715283057590,-500.0,0.00041095,30]
[326719988,1715283057599,-501.77139113,0.00041095,30]
[326719989,1715283057609,-505.71051451,0.00041095,30]
[326719990,1715283057620,-500.0,0.00041095,30]
[326719991,1715283057630,-1147.56,0.00041095,30]
[326719992,1715283057639,-500.0,0.00041095,30]
[326719993,1715283057649,-500.0,0.00041095,30]
[326719994,1715283057658,-500.0,0.00041095,30]
[326719995,1715283057667,-500.0,0.00041095,30]
[326719996,1715283057676,-634.12813521,0.00041095,30]
[326719997,1715283057686,-500.0,0.00041095,30]
[326719998,1715283057696,-500.0,0.00041095,30]
[326719999,1715283057706,-500.0,0.00041095,30]
[326720000,1715283057716,-3115.74,0.00041095,30]
[326720001,1715283057727,-500.0,0.00041095,30]
[326720002,1715283057737,-518.71,0.00041095,30]
[326720003,1715283057747,-500.0,0.00041095,30]
[326720004,1715283057756,-1180.84,0.00041095,30]
[326720005,1715283057766,-500.0,0.00041095,30]
[326720006,1715283057775,-500.0,0.00041095,30]
[326720007,1715283057784,-500.0,0.00041095,30]
[326720008,1715283057793,-500.0,0.00041095,30]
[326720009,1715283057803,-500.0,0.00041095,30]
[326720010,1715283057969,-500.0,0.00041095,30]
[326720011,1715283057978,-1473.04,0.00041095,30]
[326720012,1715283057988,-500.0,0.00041095,30]
[326720013,1715283057998,-500.0,0.00041095,30]
[326720014,1715283058007,-500.0,0.00041095,30]
[326720015,1715283058016,-292.55603142,0.00041095,30]
[326720016,1715283058027,-500.0,0.00041095,7]
[326720017,1715283058037,-500.0,0.00041095,30]
[326720018,1715283058047,-1092.81,0.00041095,30]
[326720019,1715283058056,-500.0,0.00041095,30]
[326720020,1715283058066,-500.0,0.00041095,30]
[326720021,1715283058076,-500.0,0.00041095,30]
[326720022,1715283058085,-500.0,0.00041095,30]
[326720023,1715283058095,-190.90026738,0.00041095,30]
[326720024,1715283058104,-500.0,0.00041095,30]
[326720025,1715283058113,-500.0,0.00041095,30]
[326720026,1715283058124,-500.0,0.00041095,30]
[326720027,1715283058133,-1198.54,0.00041095,30]
[326720028,1715283058142,-500.0,0.00041095,30]
[326720029,1715283058152,-1145.5,0.00041095,30]
[326720030,1715283058162,-500.0,0.00041095,30]
[326720031,1715283058172,-500.0,0.00041095,30]
[326720032,1715283058181,-1592.32,0.00041095,30]
[326720033,1715283058191,-500.0,0.00041095,30]
[326720034,1715283058201,-500.0,0.00041095,30]
[326720035,1715283058210,-500.0,0.00041095,30]
[326720036,1715283058220,-1010.12,0.00041095,30]
[326720037,1715283058229,-523.31348965,0.00041095,30]
[326720038,1715283058239,-500.0,0.00041095,30]
[326720039,1715283058248,-500.0,0.00041095,30]
[326720040,1715283058258,-500.0,0.00041095,30]
[326720041,1715283058268,-500.0,0.00041095,30]
[326720042,1715283058278,-577.77,0.00041095,30]
[326720043,1715283058287,-500.0,0.00041095,30]
[326720044,1715283058297,-503.04123482,0.00041095,30]
[326720045,1715283058306,-554.2651216,0.00041095,30]
[326720046,1715283058316,-500.0,0.00041095,30]
[326720047,1715283058326,-500.0,0.00041095,30]
[326720048,1715283058335,-1180.2,0.00041095,30]
[326720049,1715283058344,-600.2,0.00041095,30]
[326720050,1715283058353,-500.0,0.00041095,30]
[326720051,1715283058363,-500.0,0.00041095,30]
[326720052,1715283058374,-500.0,0.00041095,30]
[326720053,1715283058383,-500.0,0.00041095,30]
[326720054,1715283058392,-673.29,0.00041095,30]
[326720055,1715283058401,-517.58282365,0.00041095,30]
[326720056,1715283058411,-1047.41,0.00041095,30]
[326720057,1715283058420,-500.0,0.00041095,30]
[326720058,1715283058431,-500.0,0.00041095,30]
[326720059,1715283058440,-500.0,0.00041095,30]
[326720060,1715283058449,-500.0,0.00041095,30]
[326720061,1715283058459,-500.0,0.00041095,30]
[326720062,1715283058470,-500.0,0.00041095,30]
[326720063,1715283058479,-500.0,0.00041095,30]
[326720064,1715283058489,-500.0,0.00041095,30]
[326720065,1715283058499,-500.0,0.00041095,30]
[326720066,1715283058508,-500.0,0.00041095,30]
[326720067,1715283058518,-509.86314975,0.00041095,30]
[326720068,1715283058530,-2652.76,0.00041095,30]
[326720069,1715283058542,-500.0,0.00041095,30]
[326720070,1715283058553,-500.0,0.00041095,30]
[326720071,1715283058564,-728.8,0.00041095,30]
[326720072,1715283058575,-500.0,0.00041095,30]
[326720073,1715283058585,-500.0,0.00041095,30]
[326720074,1715283058595,-500.0,0.00041095,30]
[326720075,1715283058604,-506.67906937,0.00041095,30]
[326720076,1715283058614,-500.0,0.00041095,30]
[326720077,1715283058628,-505.20296445,0.00041095,30]
[326720078,1715283058638,-500.0,0.00041095,30]
[326720079,1715283058648,-500.0,0.00041095,30]
[326720080,1715283058658,-500.0,0.00041095,30]
[326720081,1715283058668,-506.11106986,0.00041095,30]
[326720082,1715283058678,-618.18,0.00041095,30]
[326720083,1715283058688,-500.0,0.00041095,30]
[326720084,1715283058697,-500.0,0.00041095,30]
[326720085,1715283058707,-1829.56,0.00041095,30]
[326720086,1715283058717,-3374.23,0.00041095,30]
[326720087,1715283058726,-500.0,0.00041095,30]
[326720088,1715283058735,-547.64,0.00041095,30]
[326720089,1715283058745,-547.64,0.00041095,31]
[326720090,1715283058755,-547.64,0.00041095,32]
[326720091,1715283058765,-547.64,0.00041095,33]
[326720092,1715283058775,-547.64,0.00041095,34]
[326720093,1715283058785,-788.11,0.00041095,30]
[326720094,1715283058795,-500.0,0.00041095,30]
[326720095,1715283058804,-547.64,0.00041095,35]
[326720096,1715283058814,-547.64,0.00041095,36]
[326720097,1715283058823,-515.25167639,0.00041095,30]
[326720098,1715283058833,-500.0,0.00041095,30]
[326720099,1715283058842,-547.64,0.00041095,37]
[326720100,1715283058852,-547.64,0.00041095,38]
[326720101,1715283058862,-547.64,0.00041095,39]
[326720102,1715283058872,-547.64,0.00041095,40]
[326720103,1715283058881,-547.64,0.00041095,41]
[326720104,1715283058891,-547.64,0.00041095,42]
[326720105,1715283058900,-547.64,0.00041095,43]
[326720106,1715283058910,-502.98194686,0.00041095,30]
[326720107,1715283058919,-547.64,0.00041095,44]
[326720108,1715283058929,-547.64,0.00041095,45]
[326720109,1715283058939,-547.64,0.00041095,46]
[326720110,1715283058949,-547.64,0.00041095,47]
[326720111,1715283058958,-547.64,0.00041095,48]
[326720112,1715283058969,-700.04,0.00041095,30]
[326720113,1715283058978,-547.64,0.00041095,49]
[326720114,1715283058989,-547.64,0.00041095,49]
[326720115,1715283058999,-547.64,0.00041095,49]
[326720116,1715283059009,-547.64,0.00041095,49]
[326720117,1715283059019,-653.8,0.00041095,30]
[326720118,1715283059030,-547.79891453,0.00041095,49]
[326720119,1715283059040,-509.66101193,0.00041095,30]
[326720120,1715283059050,-1581.1,0.00041095,30]
[326720121,1715283059060,-500.0,0.00041095,30]
[326720122,1715283059070,-500.0,0.00041095,30]
[326720123,1715283059079,-1000.0,0.00041095,30]
[326720124,1715283059089,-500.0,0.00041095,30]
[326720125,1715283059098,-500.0,0.00041095,30]
[326720126,1715283059108,-500.0,0.00041095,30]
[326720127,1715283059118,-500.0,0.00041095,30]
[326720128,1715283059128,-500.0,0.00041095,30]
[326720129,1715283059138,-500.0,0.00041095,30]
[326720130,1715283059147,-1042.24,0.00041095,30]
[326720131,1715283059157,-500.0,0.00041095,30]
[326720132,1715283059166,-500.0,0.00041095,30]
[326720133,1715283059176,-500.0,0.00041095,30]
[326720134,1715283059185,-500.0,0.00041095,30]
[326720135,1715283059195,-500.0,0.00041095,30]
[326720136,1715283059204,-500.0,0.00041095,30]
[326720137,1715283059214,-500.0,0.00041095,30]
[326720138,1715283059223,-500.0,0.00041095,30]
[326720139,1715283059233,-500.0,0.00041095,30]
[326720140,1715283059242,-500.0,0.00041095,30]
[326720141,1715283059251,-500.0,0.00041095,30]
[326720142,1715283059261,-500.0,0.00041095,30]
[326720143,1715283059270,-500.0,0.00041095,30]
[326720144,1715283059280,-581.86,0.00041095,30]
[326720145,1715283059289,-500.0,0.00041095,30]
[326720146,1715283059298,-500.0,0.00041095,30]
[326720147,1715283059308,-508.0055741,0.00041095,30]
[326720148,1715283059318,-500.0,0.00041095,30]
[326720149,1715283059328,-864.21,0.00041095,30]
[326720150,1715283059338,-500.0,0.00041095,30]
[326720151,1715283059348,-500.0,0.00041095,30]
[326720152,1715283059357,-1862.28,0.00041095,30]
[326720153,1715283059369,-500.0,0.00041095,30]
[326720154,1715283059380,-500.0,0.00041095,30]
[326720155,1715283059389,-739.37,0.00041095,30]
[326720156,1715283059399,-500.0,0.00041095,30]
[326720157,1715283059408,-500.0,0.00041095,30]
[326720158,1715283059417,-455.71271532,0.00041095,30]
[326720159,1715283059427,-500.0,0.00041095,30]
[326720160,1715283059437,-2899.97,0.00041095,30]
[326720161,1715283059448,-2130.96,0.00041095,30]
[326720162,1715283059458,-750.0,0.00041095,30]
[326720163,1715283059468,-500.0,0.00041095,30]
[326720164,1715283059477,-500.0,0.00041095,30]
[326720165,1715283059487,-500.0,0.00041095,30]
[326720166,1715283059496,-500.0,0.00041095,30]
[326720167,1715283059505,-1149.7,0.00041095,30]
[326720168,1715283059515,-923.81,0.00041095,30]
[326720169,1715283059525,-500.0,0.00041095,30]
[326720170,1715283059534,-500.0,0.00041095,30]
[326720171,1715283059546,-500.0,0.00041095,30]
[326720172,1715283059555,-638.02,0.00041095,30]
[326720173,1715283059566,-500.0,0.00041095,30]
[326720174,1715283059577,-500.0,0.00041095,30]
[326720175,1715283059586,-500.0,0.00041095,30]
[326720176,1715283059596,-500.0,0.00041095,30]
[326720177,1715283059606,-500.0,0.00041095,30]
[326720178,1715283059616,-500.0,0.00041095,30]
[326720179,1715283059629,-500.0,0.00041095,30]
[326720180,1715283059639,-963.93,0.00041095,30]
[326720181,1715283059648,-621.91837437,0.00041095,30]
[326720182,1715283059657,-521.56273162,0.00041095,30]
[326720183,1715283059667,-500.0,0.00041095,30]
[326720184,1715283059676,-533.14,0.00041095,30]
[326720185,1715283059686,-500.0,0.00041095,30]
[326720186,1715283059696,-500.0,0.00041095,30]
[326720187,1715283059706,-500.0,0.00041095,30]
[326720188,1715283059723,-500.0,0.00041095,30]
[326720189,1715283059743,-500.0,0.00041095,30]
[326720190,1715283059757,-500.0,0.00041095,30]
[326720191,1715283059767,-844.49,0.00041095,30]
[326720192,1715283059777,-500.0,0.00041095,30]
[326720193,1715283059787,-1317.59,0.00041095,30]
[326720194,1715283059798,-500.0,0.00041095,30]
[326720195,1715283059808,-500.0,0.00041095,30]
[326720196,1715283059817,-500.0,0.00041095,30]
[326720197,1715283059827,-500.0,0.00041095,30]
[326720198,1715283059836,-500.0,0.00041095,30]
[326720199,1715283059845,-500.0,0.00041095,30]
[326720200,1715283059855,-670.3,0.00041095,30]
[326720201,1715283059865,-500.0,0.00041095,30]
[326720202,1715283059885,-500.0,0.00041095,30]
[326720203,1715283059896,-500.0,0.00041095,30]
[326720204,1715283059906,-500.0,0.00041095,30]
[326720205,1715283059916,-809.42,0.00041095,30]
[326720206,1715283059927,-500.99997971,0.00041095,30]
[326720207,1715283059938,-500.0,0.00041095,30]
[326720208,1715283059948,-703.72,0.00041095,30]
[326720209,1715283059958,-501.97114087,0.00041095,30]
[326720210,1715283059969,-500.0,0.00041095,30]
[326720211,1715283059979,-500.0,0.00041095,30]
[326720212,1715283059989,-502.92059485,0.00041095,30]
[326720213,1715283059999,-379.75221695,0.00041095,30]
[326720214,1715283060010,-500.0,0.00041095,30]
[326720215,1715283060020,-538.81220772,0.00041095,4]
[326720216,1715283060030,-500.0,0.00041095,30]
[326720217,1715283060041,-500.0,0.00041095,30]
[326720218,1715283060051,-306.48417887,0.00041095,30]
[326720219,1715283060061,-500.0,0.00041095,30]
[326720220,1715283060071,-744.93,0.00041095,30]
[326720221,1715283060080,-500.0,0.00041095,30]
[326720222,1715283060090,-500.0,0.00041095,30]
[326720223,1715283060103,-500.0,0.00041095,30]
[326720224,1715283060113,-999.57,0.00041095,30]
[326720225,1715283060134,-500.0,0.00041095,30]
[326720226,1715283060144,-500.0,0.00041095,30]
[326720227,1715283060156,-500.0,0.00041095,30]
[326720228,1715283060166,-500.0,0.00041095,30]
[326720229,1715283060177,-500.0,0.00041095,30]
[326720230,1715283060188,-500.0,0.00041095,30]
[326720231,1715283060199,-500.0,0.00041095,30]
[326720232,1715283060209,-500.0,0.00041095,30]
[326720233,1715283060220,-8991.56,0.00041095,30]
[326720234,1715283060231,-440.36945333,0.00041095,30]
[326720235,1715283060241,-500.0,0.00041095,30]
[326720236,1715283060252,-500.0,0.00041095,30]
[326720237,1715283060261,-500.0,0.00041095,30]
[326720238,1715283060269,-500.0,0.00041095,30]
[326720239,1715283060278,-500.0,0.00041095,7]
[326720240,1715283060287,-500.0,0.00041095,30]
[326720241,1715283060296,-500.0,0.00041095,30]
[326720242,1715283060304,-500.0,0.00041095,30]
[326720243,1715283060312,-612.87,0.00041095,30]
[326720244,1715283060321,-1326.11,0.00041095,30]
[326720245,1715283060458,-2000.0,0.00041095,30]
[326720246,1715283060468,-500.0,0.00041095,30]